[Event "*** Titled Tuesday Blitz"]
[Site "Chess.com"]
[Date "2021.03.02"]
[Round "8"]
[White "hellokostya"]
[Black "Alex-11211"]
[Result "0-1"]
[WhiteElo "2542"]
[BlackElo "2383"]
[TimeControl "180+1"]
[EndTime "11:29:55 PST"]
[Termination "Alex-11211 won by resignation"]

1. d4 {[%clk 0:03:00.9]} 1... Nf6 {[%clk 0:02:58.3]} 2. c4 {[%clk 0:02:57.6]}
2... c5 {[%clk 0:02:57.4]} 3. d5 {[%clk 0:02:57.3]} 3... g6 {[%clk 0:02:57.1]}
4. Nc3 {[%clk 0:02:56.8]} 4... Bg7 {[%clk 0:02:57.7]} 5. e4 {[%clk 0:02:56.1]}
5... O-O {[%clk 0:02:58.6]} 6. Nge2 {[%clk 0:02:54.7]} 6... d6 {[%clk 0:02:59]}
7. Ng3 {[%clk 0:02:54.2]} 7... e6 {[%clk 0:02:59.2]} 8. Be2 {[%clk 0:02:49.6]}
8... exd5 {[%clk 0:02:57.5]} 9. cxd5 {[%clk 0:02:49.2]} 9... Re8 {[%clk
0:02:49.1]} 10. O-O {[%clk 0:02:48.4]} 10... Nbd7 {[%clk 0:02:40.4]} 11. a4
{[%clk 0:02:43.9]} 11... a6 {[%clk 0:02:38.6]} 12. Bf4 {[%clk 0:02:28.7]} 12...
Ne5 {[%clk 0:02:34.9]} 13. Qd2 {[%clk 0:02:24.3]} 13... Bd7 {[%clk 0:02:23.2]}
14. h3 {[%clk 0:02:11.9]} 14... b5 {[%clk 0:01:50]} 15. axb5 {[%clk 0:01:55.7]}
15... axb5 {[%clk 0:01:50.9]} 16. Bxb5 {[%clk 0:01:53]} 16... Bxb5 {[%clk
0:01:42.8]} 17. Nxb5 {[%clk 0:01:53.9]} 17... Rb8 {[%clk 0:01:17.6]} 18. Bxe5
{[%clk 0:01:42.3]} 18... Rxb5 {[%clk 0:01:00.2]} 19. Bxf6 {[%clk 0:01:23.7]}
19... Qxf6 {[%clk 0:00:50.4]} 20. b3 {[%clk 0:01:13]} 20... Qxa1 {[%clk
0:00:36.8]} 21. Rxa1 {[%clk 0:01:12.2]} 21... Bxa1 {[%clk 0:00:37.7]} 22. Qd3
{[%clk 0:01:05.6]} 22... Reb8 {[%clk 0:00:35.3]} 23. Nf1 {[%clk 0:00:58.5]}
23... Rxb3 {[%clk 0:00:34.8]} 24. Qa6 {[%clk 0:00:58.7]} 24... Be5 {[%clk
0:00:32.8]} 25. g3 {[%clk 0:00:57.2]} 25... R3b6 {[%clk 0:00:31.6]} 26. Qa4
{[%clk 0:00:54.3]} 26... Rb4 {[%clk 0:00:31.3]} 27. Qa6 {[%clk 0:00:52.9]} 27...
c4 {[%clk 0:00:31]} 28. f4 {[%clk 0:00:49.4]} 28... Bd4+ {[%clk 0:00:29.9]} 29.
Kg2 {[%clk 0:00:49.1]} 29... Rb2+ {[%clk 0:00:23.8]} 30. Kh1 {[%clk 0:00:47.3]}
30... c3 {[%clk 0:00:18.4]} 31. Qc4 {[%clk 0:00:39.5]} 31... R8b4 {[%clk
0:00:15.4]} 32. Qc8+ {[%clk 0:00:38.7]} 32... Kg7 {[%clk 0:00:15.9]} 33. e5
{[%clk 0:00:38.6]} 33... dxe5 {[%clk 0:00:16.6]} 34. d6 {[%clk 0:00:38.7]} 34...
Rb1 {[%clk 0:00:13.5]} 35. Kg2 {[%clk 0:00:32]} 35... R4b2+ {[%clk 0:00:12.8]}
36. Kf3 {[%clk 0:00:31.4]} 36... Rxf1+ {[%clk 0:00:12.2]} 37. Ke4 {[%clk
0:00:32.1]} 37... Re1+ {[%clk 0:00:10.6]} 38. Kd5 {[%clk 0:00:30.7]} 38... Rd2
{[%clk 0:00:10.4]} 39. d7 {[%clk 0:00:30.6]} 39... c2 {[%clk 0:00:09]} 40. fxe5
{[%clk 0:00:18.7]} 40... Bxe5+ {[%clk 0:00:08.7]} 41. Kc6 {[%clk 0:00:15]} 41...
c1=Q+ {[%clk 0:00:09]} 42. Kb7 {[%clk 0:00:15.9]} 42... Rb2+ {[%clk 0:00:08.8]}
0-1

[Event "*** Titled Tuesday Blitz"]
[Site "Chess.com"]
[Date "2021.03.02"]
[Round "8"]
[White "IngOscarArdila"]
[Black "indfraeng"]
[Result "0-1"]
[WhiteElo "2244"]
[BlackElo "2400"]
[TimeControl "180+1"]
[EndTime "11:29:55 PST"]
[Termination "indfraeng won by resignation"]

1. d4 {[%clk 0:02:59.2]} 1... d5 {[%clk 0:02:59.9]} 2. c4 {[%clk 0:02:58.6]}
2... c6 {[%clk 0:02:59.9]} 3. Nc3 {[%clk 0:02:57.6]} 3... Nf6 {[%clk 0:02:59.9]}
4. Bf4 {[%clk 0:02:56]} 4... e6 {[%clk 0:02:52.3]} 5. Nf3 {[%clk 0:02:55.6]}
5... Bd6 {[%clk 0:02:52.7]} 6. Bg5 {[%clk 0:02:54]} 6... h6 {[%clk 0:02:48.4]}
7. Bh4 {[%clk 0:02:53.8]} 7... O-O {[%clk 0:02:46]} 8. e3 {[%clk 0:02:53.7]}
8... Nbd7 {[%clk 0:02:45.6]} 9. c5 {[%clk 0:02:49.5]} 9... Bc7 {[%clk
0:02:45.4]} 10. Bd3 {[%clk 0:02:50.2]} 10... e5 {[%clk 0:02:44.9]} 11. dxe5
{[%clk 0:02:34.8]} 11... Nxe5 {[%clk 0:02:45.8]} 12. Nxe5 {[%clk 0:02:35.1]}
12... Bxe5 {[%clk 0:02:46.7]} 13. h3 {[%clk 0:02:26.1]} 13... d4 {[%clk
0:02:42.9]} 14. exd4 {[%clk 0:02:10.3]} 14... Qxd4 {[%clk 0:02:43.8]} 15. Bxf6
{[%clk 0:02:03.8]} 15... Bxf6 {[%clk 0:02:44.7]} 16. O-O {[%clk 0:02:00.3]}
16... Qxc5 {[%clk 0:02:43.3]} 17. Ne4 {[%clk 0:01:59.1]} 17... Qe5 {[%clk
0:02:42.6]} 18. Nxf6+ {[%clk 0:01:55.7]} 18... Qxf6 {[%clk 0:02:43.5]} 19. Qc2
{[%clk 0:01:56]} 19... Be6 {[%clk 0:02:42.1]} 20. a3 {[%clk 0:01:55.1]} 20...
Rad8 {[%clk 0:02:41.1]} 21. Rad1 {[%clk 0:01:54.9]} 21... Rd4 {[%clk 0:02:40.5]}
22. Be4 {[%clk 0:01:45.7]} 22... Rfd8 {[%clk 0:02:38.7]} 23. Rfe1 {[%clk
0:01:45.7]} 23... Qf4 {[%clk 0:02:25.9]} 24. Rxd4 {[%clk 0:01:39]} 24... Rxd4
{[%clk 0:02:26.8]} 25. Bf3 {[%clk 0:01:38.6]} 25... Qd6 {[%clk 0:02:05.3]} 26.
Qc3 {[%clk 0:01:31.2]} 26... Rd3 {[%clk 0:01:59.6]} 27. Qc2 {[%clk 0:01:26.7]}
27... Qd4 {[%clk 0:01:54.3]} 28. Rd1 {[%clk 0:01:22.1]} 28... Rxd1+ {[%clk
0:01:49.3]} 29. Bxd1 {[%clk 0:01:19]} 29... Bd5 {[%clk 0:01:43.2]} 30. Kf1
{[%clk 0:01:15]} 30... Qe5 {[%clk 0:01:32.6]} 31. Kg1 {[%clk 0:01:10.7]} 31...
Qg5 {[%clk 0:01:27.3]} 32. f3 {[%clk 0:01:03.7]} 32... Qe3+ {[%clk 0:01:25.4]}
33. Qf2 {[%clk 0:01:03.6]} 33... Qc1 {[%clk 0:01:24.9]} 34. Qc2 {[%clk
0:00:58.1]} 34... Qf4 {[%clk 0:01:22.8]} 35. Qf2 {[%clk 0:00:52.1]} 35... a6
{[%clk 0:01:17.7]} 36. Bc2 {[%clk 0:00:49.6]} 36... Qc1+ {[%clk 0:01:16.3]} 37.
Kh2 {[%clk 0:00:47.7]} 37... Qf4+ {[%clk 0:01:16.7]} 38. Kg1 {[%clk 0:00:45.5]}
38... g6 {[%clk 0:01:15.7]} 39. Bd3 {[%clk 0:00:38.3]} 39... Qe5 {[%clk
0:01:10.5]} 40. Qe2 {[%clk 0:00:36.4]} 40... Qd4+ {[%clk 0:01:09.3]} 41. Kh2
{[%clk 0:00:36.3]} 41... Be6 {[%clk 0:01:09.2]} 42. Be4 {[%clk 0:00:33]} 42...
Bc4 {[%clk 0:01:04.5]} 43. Qc2 {[%clk 0:00:30.3]} 43... b5 {[%clk 0:01:02.7]}
44. g4 {[%clk 0:00:26.3]} 44... c5 {[%clk 0:01:00.5]} 45. Bxg6 {[%clk
0:00:21.1]} 45... Qd6+ {[%clk 0:01:00]} 46. f4 {[%clk 0:00:18.4]} 46... Qxf4+
{[%clk 0:00:52.1]} 47. Kg1 {[%clk 0:00:18.1]} 47... Qg3+ {[%clk 0:00:52]} 48.
Kh1 {[%clk 0:00:16.4]} 48... Bd5+ {[%clk 0:00:50.1]} 49. Be4 {[%clk 0:00:15.6]}
49... Qxh3+ {[%clk 0:00:48.5]} 50. Kg1 {[%clk 0:00:15.7]} 50... Qe3+ {[%clk
0:00:48.2]} 51. Qf2 {[%clk 0:00:13.5]} 51... Qxf2+ {[%clk 0:00:47.9]} 52. Kxf2
{[%clk 0:00:13.6]} 52... Bxe4 {[%clk 0:00:48.8]} 0-1

[Event "*** Titled Tuesday Blitz"]
[Site "Chess.com"]
[Date "2021.03.02"]
[Round "8"]
[White "atwalcb"]
[Black "anon219"]
[Result "0-1"]
[WhiteElo "2567"]
[BlackElo "2855"]
[TimeControl "180+1"]
[EndTime "11:29:56 PST"]
[Termination "anon219 won by resignation"]

1. d4 {[%clk 0:03:00.9]} 1... d5 {[%clk 0:02:55.5]} 2. Nf3 {[%clk 0:03:00.2]}
2... Nf6 {[%clk 0:02:55]} 3. c4 {[%clk 0:03:00.2]} 3... e6 {[%clk 0:02:53.8]} 4.
g3 {[%clk 0:02:59.6]} 4... dxc4 {[%clk 0:02:53.4]} 5. Bg2 {[%clk 0:02:44.8]}
5... a6 {[%clk 0:02:52.8]} 6. Ne5 {[%clk 0:02:39.3]} 6... Bb4+ {[%clk
0:02:49.6]} 7. Bd2 {[%clk 0:02:29.9]} 7... Qxd4 {[%clk 0:02:45.6]} 8. Bxb4
{[%clk 0:02:28]} 8... Qxe5 {[%clk 0:02:45.7]} 9. Bc3 {[%clk 0:02:27.4]} 9... Qc5
{[%clk 0:02:42.7]} 10. O-O {[%clk 0:02:17.2]} 10... O-O {[%clk 0:02:37.1]} 11.
Bxf6 {[%clk 0:02:08.5]} 11... gxf6 {[%clk 0:02:38]} 12. Qc2 {[%clk 0:02:07.7]}
12... Nc6 {[%clk 0:02:34.9]} 13. a4 {[%clk 0:02:03]} 13... Nd4 {[%clk
0:02:31.7]} 14. Qd1 {[%clk 0:01:56.5]} 14... e5 {[%clk 0:02:28.7]} 15. e3 {[%clk
0:01:54.9]} 15... Nb3 {[%clk 0:02:27.1]} 16. Ra3 {[%clk 0:01:54.7]} 16... Bf5
{[%clk 0:02:20.9]} 17. e4 {[%clk 0:01:51.7]} 17... Bg6 {[%clk 0:02:17.1]} 18. h4
{[%clk 0:01:48.9]} 18... Rad8 {[%clk 0:02:14.8]} 19. Qg4 {[%clk 0:01:48.8]}
19... h5 {[%clk 0:02:12.7]} 20. Qf3 {[%clk 0:01:48]} 20... Rd3 {[%clk
0:02:10.7]} 21. Qe2 {[%clk 0:01:44.2]} 21... Rfd8 {[%clk 0:02:07]} 22. Re1
{[%clk 0:01:30.6]} 22... Nd4 {[%clk 0:02:00.9]} 23. Qf1 {[%clk 0:01:30.5]} 23...
Nc2 {[%clk 0:01:03.4]} 24. Rxd3 {[%clk 0:01:25.1]} 24... Rxd3 {[%clk 0:01:01.2]}
25. Rc1 {[%clk 0:01:20.8]} 25... Nb4 {[%clk 0:01:01.4]} 26. Na3 {[%clk
0:01:10.8]} 26... b5 {[%clk 0:00:59]} 27. axb5 {[%clk 0:01:10.6]} 27... axb5
{[%clk 0:00:59.9]} 28. Qe2 {[%clk 0:01:08]} 28... Rxg3 {[%clk 0:00:55]} 29. Nxc4
{[%clk 0:01:00.2]} 29... bxc4 {[%clk 0:00:49.2]} 30. Rxc4 {[%clk 0:01:00.5]}
30... Qb6 {[%clk 0:00:49.5]} 31. Kh2 {[%clk 0:00:49.1]} 31... Rg4 {[%clk
0:00:44.3]} 32. Kh3 {[%clk 0:00:43.8]} 32... Nc6 {[%clk 0:00:32.9]} 33. f3
{[%clk 0:00:43.3]} 33... Rf4 {[%clk 0:00:32.8]} 34. Qc2 {[%clk 0:00:38.1]} 34...
Nd4 {[%clk 0:00:31.5]} 35. Qc3 {[%clk 0:00:38.6]} 35... Ne2 {[%clk 0:00:29.7]}
36. Qe1 {[%clk 0:00:32.4]} 36... Qe3 {[%clk 0:00:29.6]} 37. Kh2 {[%clk 0:00:27]}
37... Rxh4+ {[%clk 0:00:16.6]} 38. Qxh4 {[%clk 0:00:24.1]} 38... Qg1+ {[%clk
0:00:16.6]} 39. Kh3 {[%clk 0:00:21.2]} 39... Nf4+ {[%clk 0:00:16.9]} 40. Qxf4
{[%clk 0:00:17.7]} 40... exf4 {[%clk 0:00:17.8]} 41. Rxc7 {[%clk 0:00:18.2]}
41... Qe1 {[%clk 0:00:18.1]} 42. Kh2 {[%clk 0:00:17.2]} 42... h4 {[%clk
0:00:17.2]} 43. Rc8+ {[%clk 0:00:15.2]} 43... Kg7 {[%clk 0:00:16.6]} 0-1

[Event "*** Titled Tuesday Blitz"]
[Site "Chess.com"]
[Date "2021.03.02"]
[Round "8"]
[White "PavelShkapenko"]
[Black "Rondo_Capriccioso"]
[Result "0-1"]
[WhiteElo "2660"]
[BlackElo "2476"]
[TimeControl "180+1"]
[EndTime "11:29:56 PST"]
[Termination "Rondo_Capriccioso won by resignation"]

1. e4 {[%clk 0:03:00.9]} 1... c5 {[%clk 0:02:59.3]} 2. c3 {[%clk 0:03:00.9]}
2... d5 {[%clk 0:02:57.1]} 3. exd5 {[%clk 0:03:00.9]} 3... Qxd5 {[%clk 0:02:58]}
4. Nf3 {[%clk 0:03:00.6]} 4... Nf6 {[%clk 0:02:57.6]} 5. d4 {[%clk 0:03:00.8]}
5... cxd4 {[%clk 0:02:56.9]} 6. cxd4 {[%clk 0:03:00.1]} 6... e6 {[%clk
0:02:57.5]} 7. Be2 {[%clk 0:02:59.4]} 7... Bb4+ {[%clk 0:02:56.5]} 8. Nc3 {[%clk
0:02:58.5]} 8... O-O {[%clk 0:02:56.7]} 9. O-O {[%clk 0:02:58.4]} 9... Qd8
{[%clk 0:02:55.3]} 10. Ne5 {[%clk 0:02:49.9]} 10... Nc6 {[%clk 0:02:55.2]} 11.
Be3 {[%clk 0:02:48.8]} 11... Nd5 {[%clk 0:02:36]} 12. Nxd5 {[%clk 0:02:42.8]}
12... exd5 {[%clk 0:02:34.8]} 13. Rc1 {[%clk 0:02:38.4]} 13... Nxe5 {[%clk
0:02:25.3]} 14. dxe5 {[%clk 0:02:37.8]} 14... Be6 {[%clk 0:02:26.2]} 15. Bd4
{[%clk 0:02:36.9]} 15... Qa5 {[%clk 0:02:11.3]} 16. Bd3 {[%clk 0:02:31.7]} 16...
Rfc8 {[%clk 0:02:09.2]} 17. f4 {[%clk 0:02:27]} 17... Rxc1 {[%clk 0:01:35.5]}
18. Qxc1 {[%clk 0:02:23.6]} 18... Rc8 {[%clk 0:01:32.6]} 19. Qb1 {[%clk
0:02:20.8]} 19... Bc5 {[%clk 0:01:26.4]} 20. Bxc5 {[%clk 0:02:15.4]} 20... Qxc5+
{[%clk 0:01:25.2]} 21. Kh1 {[%clk 0:02:15.8]} 21... g6 {[%clk 0:01:22.5]} 22. f5
{[%clk 0:02:15.4]} 22... gxf5 {[%clk 0:01:20.9]} 23. Bxf5 {[%clk 0:02:14.9]}
23... Qe3 {[%clk 0:01:16.6]} 24. Bxh7+ {[%clk 0:01:15.6]} 24... Kg7 {[%clk
0:01:15.9]} 25. Bf5 {[%clk 0:01:01.3]} 25... Qxe5 {[%clk 0:01:11]} 26. Bxe6
{[%clk 0:01:00.6]} 26... fxe6 {[%clk 0:01:11.9]} 27. Qd1 {[%clk 0:00:57.8]}
27... Rc4 {[%clk 0:01:08.4]} 28. Qf3 {[%clk 0:00:55.6]} 28... Rc7 {[%clk
0:00:44.8]} 29. Qf8+ {[%clk 0:00:51.3]} 29... Kh7 {[%clk 0:00:43.6]} 30. h3
{[%clk 0:00:42.8]} 30... Rg7 {[%clk 0:00:43.7]} 31. Qb4 {[%clk 0:00:33.1]} 31...
Qg5 {[%clk 0:00:40.1]} 32. Rf2 {[%clk 0:00:26]} 32... Qc1+ {[%clk 0:00:37.3]}
33. Kh2 {[%clk 0:00:25.7]} 33... Qc7+ {[%clk 0:00:37.8]} 34. Kg1 {[%clk
0:00:24.9]} 34... Qc1+ {[%clk 0:00:32.2]} 35. Rf1 {[%clk 0:00:24.6]} 35... Qg5
{[%clk 0:00:32.2]} 36. Rf2 {[%clk 0:00:20.2]} 36... e5 {[%clk 0:00:30.4]} 37.
Qc5 {[%clk 0:00:17.4]} 37... e4 {[%clk 0:00:28.2]} 38. Qc2 {[%clk 0:00:14.3]}
38... Qg3 {[%clk 0:00:21.2]} 39. Qe2 {[%clk 0:00:12.9]} 39... Qxh3 {[%clk
0:00:20.1]} 40. Rf5 {[%clk 0:00:13]} 40... Qxf5 {[%clk 0:00:13.6]} 0-1

[Event "*** Titled Tuesday Blitz"]
[Site "Chess.com"]
[Date "2021.03.02"]
[Round "8"]
[White "swisspower96"]
[Black "IriBu"]
[Result "1-0"]
[WhiteElo "2679"]
[BlackElo "2550"]
[TimeControl "180+1"]
[EndTime "11:29:57 PST"]
[Termination "swisspower96 won by resignation"]

1. d4 {[%clk 0:03:00.9]} 1... Nf6 {[%clk 0:03:00]} 2. c4 {[%clk 0:03:01.2]} 2...
e6 {[%clk 0:02:59.7]} 3. Nf3 {[%clk 0:03:00]} 3... Bb4+ {[%clk 0:02:59.6]} 4.
Nbd2 {[%clk 0:02:58.5]} 4... b6 {[%clk 0:02:59.2]} 5. a3 {[%clk 0:02:58.2]} 5...
Bxd2+ {[%clk 0:02:57.9]} 6. Qxd2 {[%clk 0:02:59.1]} 6... Bb7 {[%clk 0:02:58.1]}
7. e3 {[%clk 0:02:59.2]} 7... O-O {[%clk 0:02:57.5]} 8. Be2 {[%clk 0:02:59.8]}
8... Ne4 {[%clk 0:02:55.3]} 9. Qc2 {[%clk 0:03:00]} 9... d6 {[%clk 0:02:55.9]}
10. O-O {[%clk 0:03:00.1]} 10... a5 {[%clk 0:02:56.2]} 11. b3 {[%clk 0:02:59.9]}
11... Nd7 {[%clk 0:02:56.3]} 12. Bb2 {[%clk 0:02:53.8]} 12... f5 {[%clk
0:02:55.6]} 13. Nd2 {[%clk 0:02:46.9]} 13... Nxd2 {[%clk 0:02:51.5]} 14. Qxd2
{[%clk 0:02:46.7]} 14... Rf6 {[%clk 0:02:50.1]} 15. d5 {[%clk 0:02:44.9]} 15...
Rg6 {[%clk 0:02:44.3]} 16. f3 {[%clk 0:02:20.7]} 16... Qg5 {[%clk 0:02:35.3]}
17. Rf2 {[%clk 0:02:16.9]} 17... e5 {[%clk 0:02:31.3]} 18. f4 {[%clk 0:02:12.8]}
18... exf4 {[%clk 0:02:25.6]} 19. exf4 {[%clk 0:02:10]} 19... Qh4 {[%clk
0:02:25]} 20. Bd3 {[%clk 0:02:03.5]} 20... Rf8 {[%clk 0:02:17.3]} 21. Re1 {[%clk
0:01:58.9]} 21... Nc5 {[%clk 0:02:13.3]} 22. Bc2 {[%clk 0:01:59.2]} 22... Bc8
{[%clk 0:02:10.5]} 23. b4 {[%clk 0:01:37]} 23... axb4 {[%clk 0:02:11.4]} 24.
axb4 {[%clk 0:01:37.3]} 24... Ne4 {[%clk 0:01:58.1]} 25. Bxe4 {[%clk 0:01:37.3]}
25... fxe4 {[%clk 0:01:59]} 26. Rxe4 {[%clk 0:01:37.8]} 26... Rh6 {[%clk
0:01:57.7]} 27. g3 {[%clk 0:01:25.1]} 27... Qh3 {[%clk 0:01:53.1]} 28. Re7
{[%clk 0:00:48.8]} 28... Rg6 {[%clk 0:01:52.8]} 29. Qe3 {[%clk 0:00:27.7]} 29...
Qh5 {[%clk 0:01:41]} 30. Rxc7 {[%clk 0:00:25.3]} 30... Bh3 {[%clk 0:01:37.4]}
31. Qe2 {[%clk 0:00:20]} 31... Bg4 {[%clk 0:01:05.8]} 32. Qe1 {[%clk 0:00:17.6]}
32... Bh3 {[%clk 0:01:01.3]} 33. Re7 {[%clk 0:00:15.1]} 33... h6 {[%clk
0:00:55]} 34. Qe2 {[%clk 0:00:12.7]} 34... Bg4 {[%clk 0:00:53.4]} 35. Qe3 {[%clk
0:00:12.6]} 35... Bh3 {[%clk 0:00:52.2]} 36. Qf3 {[%clk 0:00:09.6]} 36... Qf5
{[%clk 0:00:51.9]} 37. Qe4 {[%clk 0:00:07.1]} 37... Qh5 {[%clk 0:00:47.6]} 38.
Bd4 {[%clk 0:00:04.8]} 38... Qd1+ {[%clk 0:00:45.2]} 39. Qe1 {[%clk 0:00:04]}
39... Qxd4 {[%clk 0:00:45.2]} 40. Re4 {[%clk 0:00:04.5]} 40... Qf6 {[%clk
0:00:43.4]} 41. Qe3 {[%clk 0:00:02.9]} 41... Ra8 {[%clk 0:00:41.4]} 42. Re2
{[%clk 0:00:01.2]} 42... Ra1+ {[%clk 0:00:38.7]} 43. Re1 {[%clk 0:00:02.1]}
43... Rxe1+ {[%clk 0:00:38.7]} 44. Qxe1 {[%clk 0:00:03]} 44... Qb2 {[%clk
0:00:38.8]} 45. Re2 {[%clk 0:00:02]} 45... Qxb4 {[%clk 0:00:38.1]} 46. Qxb4
{[%clk 0:00:01.9]} 1-0

[Event "*** Titled Tuesday Blitz"]
[Site "Chess.com"]
[Date "2021.03.02"]
[Round "8"]
[White "Rap_woyska"]
[Black "Bigfish1995"]
[Result "0-1"]
[WhiteElo "2591"]
[BlackElo "3113"]
[TimeControl "180+1"]
[EndTime "11:29:58 PST"]
[Termination "Bigfish1995 won by resignation"]

1. c4 {[%clk 0:03:00.9]} 1... e5 {[%clk 0:02:58.7]} 2. Nc3 {[%clk 0:03:00.5]}
2... Nc6 {[%clk 0:02:58.3]} 3. Nf3 {[%clk 0:03:00.8]} 3... f5 {[%clk 0:02:57.8]}
4. d4 {[%clk 0:03:00.7]} 4... e4 {[%clk 0:02:56]} 5. Ng5 {[%clk 0:03:01]} 5...
Nf6 {[%clk 0:02:54.1]} 6. Nh3 {[%clk 0:03:00.9]} 6... Bb4 {[%clk 0:02:52]} 7. e3
{[%clk 0:02:59.5]} 7... d5 {[%clk 0:02:47.2]} 8. Bd2 {[%clk 0:02:38.3]} 8...
Bxc3 {[%clk 0:02:17.9]} 9. bxc3 {[%clk 0:02:30.7]} 9... Be6 {[%clk 0:02:18]} 10.
Nf4 {[%clk 0:02:29.4]} 10... Bf7 {[%clk 0:02:17.3]} 11. cxd5 {[%clk 0:02:21.4]}
11... Nxd5 {[%clk 0:02:17.1]} 12. Nxd5 {[%clk 0:02:21.6]} 12... Qxd5 {[%clk
0:02:17.6]} 13. c4 {[%clk 0:02:19.1]} 13... Qd6 {[%clk 0:02:17.9]} 14. Be2
{[%clk 0:01:55.7]} 14... O-O {[%clk 0:02:16.1]} 15. g3 {[%clk 0:01:49.4]} 15...
Rad8 {[%clk 0:02:11.5]} 16. Qa4 {[%clk 0:01:35.6]} 16... Qh6 {[%clk 0:02:03.6]}
17. h4 {[%clk 0:01:29.2]} 17... Bh5 {[%clk 0:02:00.6]} 18. Qd1 {[%clk
0:01:17.8]} 18... Bxe2 {[%clk 0:01:55.2]} 19. Qxe2 {[%clk 0:01:18.7]} 19... Qf6
{[%clk 0:01:48.8]} 20. Bc3 {[%clk 0:01:18.2]} 20... Ne7 {[%clk 0:01:29]} 21. Qb2
{[%clk 0:01:11.9]} 21... b6 {[%clk 0:01:27.7]} 22. h5 {[%clk 0:00:54.8]} 22...
h6 {[%clk 0:01:25.8]} 23. Ke2 {[%clk 0:00:50.5]} 23... Qf7 {[%clk 0:01:25.8]}
24. Qb3 {[%clk 0:00:46.8]} 24... Kh7 {[%clk 0:01:26.4]} 25. a4 {[%clk
0:00:46.5]} 25... c6 {[%clk 0:01:07]} 26. Rab1 {[%clk 0:00:44]} 26... Rb8 {[%clk
0:01:01.5]} 27. Bd2 {[%clk 0:00:28]} 27... Rfd8 {[%clk 0:00:59.4]} 28. Qc2
{[%clk 0:00:26.7]} 28... Kh8 {[%clk 0:00:58.4]} 29. a5 {[%clk 0:00:23.6]} 29...
b5 {[%clk 0:00:58.1]} 30. cxb5 {[%clk 0:00:23.3]} 30... cxb5 {[%clk 0:00:58.8]}
31. Bb4 {[%clk 0:00:22.4]} 31... Nd5 {[%clk 0:00:58.4]} 32. Bc5 {[%clk
0:00:22.9]} 32... b4 {[%clk 0:00:58.9]} 33. Rbc1 {[%clk 0:00:20.4]} 33... b3
{[%clk 0:00:58.5]} 34. Qb2 {[%clk 0:00:20.7]} 34... Qd7 {[%clk 0:00:56.7]} 35.
Kf1 {[%clk 0:00:20.3]} 35... Qb5+ {[%clk 0:00:56.7]} 36. Kg2 {[%clk 0:00:20.9]}
36... Qxa5 {[%clk 0:00:56.7]} 37. Ra1 {[%clk 0:00:21.2]} 37... Qb5 {[%clk
0:00:53.6]} 38. Rxa7 {[%clk 0:00:19.7]} 38... Ra8 {[%clk 0:00:54]} 39. Rha1
{[%clk 0:00:19]} 39... Rxa7 {[%clk 0:00:53.6]} 40. Rxa7 {[%clk 0:00:19.9]} 40...
Kh7 {[%clk 0:00:47.5]} 41. Ra3 {[%clk 0:00:18.3]} 41... Rb8 {[%clk 0:00:46.8]}
42. Bd6 {[%clk 0:00:18.8]} 42... Rb7 {[%clk 0:00:46.3]} 43. Be5 {[%clk 0:00:19]}
43... Qc4 {[%clk 0:00:45.5]} 44. Ra8 {[%clk 0:00:16.7]} 44... Qc2 {[%clk
0:00:41.3]} 45. Qa3 {[%clk 0:00:16.9]} 45... Nxe3+ {[%clk 0:00:41.1]} 46. Kg1
{[%clk 0:00:09.9]} 46... Qd1+ {[%clk 0:00:41.2]} 47. Kh2 {[%clk 0:00:09.9]}
47... Qxh5+ {[%clk 0:00:41.5]} 48. Kg1 {[%clk 0:00:09.8]} 48... Qd1+ {[%clk
0:00:41.8]} 49. Kh2 {[%clk 0:00:10.4]} 49... Ng4+ {[%clk 0:00:42.4]} 50. Kg2
{[%clk 0:00:11.1]} 50... Qf3+ {[%clk 0:00:42.9]} 0-1

[Event "*** Titled Tuesday Blitz"]
[Site "Chess.com"]
[Date "2021.03.02"]
[Round "8"]
[White "TeukkaSalama"]
[Black "Aradhya2000"]
[Result "0-1"]
[WhiteElo "2384"]
[BlackElo "2522"]
[TimeControl "180+1"]
[EndTime "11:29:58 PST"]
[Termination "Aradhya2000 won on time"]

1. d4 {[%clk 0:03:00.9]} 1... d5 {[%clk 0:03:00]} 2. Bf4 {[%clk 0:03:00.8]} 2...
Nf6 {[%clk 0:03:00.1]} 3. e3 {[%clk 0:03:01.1]} 3... c5 {[%clk 0:03:00.2]} 4. c3
{[%clk 0:03:01.5]} 4... Nc6 {[%clk 0:02:59.9]} 5. Nd2 {[%clk 0:03:02.1]} 5...
Bf5 {[%clk 0:03:00.2]} 6. Ngf3 {[%clk 0:03:01.6]} 6... Qb6 {[%clk 0:03:00.2]} 7.
Nh4 {[%clk 0:02:56]} 7... Be4 {[%clk 0:02:59.9]} 8. dxc5 {[%clk 0:02:24.8]} 8...
Qxc5 {[%clk 0:02:59.2]} 9. Qb3 {[%clk 0:02:05.4]} 9... Qb6 {[%clk 0:02:52.4]}
10. Qxb6 {[%clk 0:01:47.7]} 10... axb6 {[%clk 0:02:53.3]} 11. Nxe4 {[%clk
0:01:47.8]} 11... dxe4 {[%clk 0:02:35.9]} 12. Bb5 {[%clk 0:01:33.3]} 12... e6
{[%clk 0:02:25.3]} 13. g3 {[%clk 0:01:16.8]} 13... O-O-O {[%clk 0:02:13.9]} 14.
Bxc6 {[%clk 0:01:09]} 14... bxc6 {[%clk 0:02:13.3]} 15. Bg5 {[%clk 0:01:07.1]}
15... Be7 {[%clk 0:02:02.5]} 16. Bxf6 {[%clk 0:01:07.2]} 16... Bxf6 {[%clk
0:02:02.7]} 17. Ng2 {[%clk 0:01:08.1]} 17... h5 {[%clk 0:02:02.4]} 18. h4 {[%clk
0:01:07.5]} 18... Kc7 {[%clk 0:01:59.9]} 19. Ke2 {[%clk 0:01:06.9]} 19... Rd5
{[%clk 0:01:47.6]} 20. Rhd1 {[%clk 0:01:05.5]} 20... Rb5 {[%clk 0:01:47.3]} 21.
Rd2 {[%clk 0:01:01.1]} 21... Ra8 {[%clk 0:01:47.7]} 22. a3 {[%clk 0:00:58.2]}
22... g6 {[%clk 0:01:41]} 23. Rad1 {[%clk 0:00:57.9]} 23... Rd8 {[%clk
0:01:32.3]} 24. Nf4 {[%clk 0:00:51.8]} 24... e5 {[%clk 0:01:27.3]} 25. Ng2
{[%clk 0:00:51.7]} 25... Rbd5 {[%clk 0:01:24.7]} 26. Ne1 {[%clk 0:00:45.2]}
26... Be7 {[%clk 0:01:22.8]} 27. b4 {[%clk 0:00:40.2]} 27... f5 {[%clk
0:01:18.6]} 28. Nc2 {[%clk 0:00:38.8]} 28... b5 {[%clk 0:01:12.3]} 29. Na1
{[%clk 0:00:36.5]} 29... f4 {[%clk 0:01:08.7]} 30. exf4 {[%clk 0:00:33.2]} 30...
exf4 {[%clk 0:01:08.8]} 31. Nb3 {[%clk 0:00:31.2]} 31... Bf6 {[%clk 0:01:05.7]}
32. Rxd5 {[%clk 0:00:27.6]} 32... Rxd5 {[%clk 0:01:05]} 33. Rxd5 {[%clk
0:00:27.4]} 33... cxd5 {[%clk 0:01:05.5]} 34. Kd2 {[%clk 0:00:26.5]} 34... fxg3
{[%clk 0:01:05.3]} 35. fxg3 {[%clk 0:00:26.3]} 35... Be5 {[%clk 0:01:05.7]} 36.
Nd4 {[%clk 0:00:11.6]} 36... Bxg3 {[%clk 0:01:04.2]} 37. Nxb5+ {[%clk
0:00:11.6]} 37... Kb6 {[%clk 0:01:04.5]} 38. a4 {[%clk 0:00:11.7]} 38... Bxh4
{[%clk 0:01:04.7]} 39. Nd4 {[%clk 0:00:10]} 39... Bf6 {[%clk 0:01:04.7]} 40. a5+
{[%clk 0:00:06.3]} 40... Ka6 {[%clk 0:01:04.5]} 41. Nc6 {[%clk 0:00:06.2]} 41...
h4 {[%clk 0:01:04.6]} 42. Nb8+ {[%clk 0:00:03]} 42... Kb5 {[%clk 0:01:04.1]} 43.
a6 {[%clk 0:00:03.3]} 43... Bg5+ {[%clk 0:00:58.9]} 44. Kc2 {[%clk 0:00:02.6]}
44... Kb6 {[%clk 0:00:58.8]} 45. b5 {[%clk 0:00:02.8]} 45... Be3 {[%clk
0:00:51.5]} 46. Nc6 {[%clk 0:00:02.9]} 46... h3 {[%clk 0:00:46.5]} 47. a7 {[%clk
0:00:02.8]} 47... Kb7 {[%clk 0:00:46.3]} 48. Nd8+ {[%clk 0:00:01.8]} 48... Kxa7
{[%clk 0:00:45.9]} 49. Nc6+ {[%clk 0:00:01.4]} 49... Kb6 {[%clk 0:00:46]} 0-1